Cogmind - Beta 12 @@@ ROGUE MODE // 2023.04.02 @ 13:48:05 Player: Exp. Geonium Core Result: Destroyed by Striker with Plasma Lance Performance ------------- Evolutions (9) 4500 Regions Visited (26) 5200 Robots Destroyed (208) 1040 Value Destroyed (12390) 12390 Prototype IDs (31) 620 Alien Tech Used (0) 0 Bonus (17215) 17215 TOTAL SCORE: 40965 Bonus ------- Triggered High Security 500 High Alert Combat Kills 1756 Follower Combat Kills 8040 Entered Garrisons 2000 Used RIF Installer 5500 Aligned with FarCom 300 Scanned by Researcher 500 Friendly Fire -1381 Cogmind --------- Core Integrity 0/1600 Matter 241/300 Energy 66/100 System Corruption 31% Temperature Cool (0) Movement Core (50) Location -1/Command Parts ------- > --- POWER (3) -------- (None) > --- PROPULSION (6) --- (None) > --- UTILITY (14) ----- (None) > --- WEAPON (2) ------- (None) > --- INVENTORY (5) ---- (None) Peak State ------------ > --- POWER ------------ Quantum Reactor Light Quantum Reactor Light Quantum Reactor > --- PROPULSION ------- Armored Heavy Treads Armored Heavy Treads Armored Heavy Treads > --- UTILITY ---------- Huge Storage Unit Advanced Targeting Computer Advanced Powered Armor Advanced Powered Armor Improved Thermal Defense Suite Relay Coupler [NC] Relay Coupler [Swarmer] Relay Coupler [Grunt] Relay Coupler [Sentry] Relay Coupler [Sentry] Relay Coupler [Demolisher] Relay Coupler [Specialist] Relay Coupler [Hunter] Relay Coupler [Hunter] > --- WEAPON ----------- Multirail Ionic Axe > --- INVENTORY -------- Light Quantum Reactor Armored Heavy Treads Armored Heavy Treads Experimental Coolant Injector Experimental Energy Well Experimental Core Analyzer Advanced Phase Shifter Advanced Powered Armor Graphene Brace Beam Splitter Advanced Force Field Improved Hacking Suite Relay Coupler [Grunt] Relay Coupler [Grunt] Relay Coupler [Brawler] Multirail Tri-rail Accelerator Guided Micro-nuke Launcher Improved Datajack Advanced Remote Datajack Ionic Axe [Rating: 176] Favorites ----------- Power Light Quantum Reactor Engine Ion Engine Power Core Enhanced Nuclear Core Reactor Light Quantum Reactor Propulsion Enhanced Biometal Leg Treads Light Treads Leg Enhanced Biometal Leg Wheel Wheel Utility Huge Storage Unit Device Trap Scanner Storage Huge Storage Unit Processor Advanced Visual Processing Unit Hackware Relay Coupler [Sentry] Protection Improved Medium Armor Plating Weapon Longsword +1 Energy Gun Cooled Pulse Rifle Energy Cannon Heavy Phase Cannon Ballistic Gun Autogun Ballistic Cannon Light Cannon Launcher Heavy Rocket Launcher Special Weapon Improved Remote Datajack Impact Weapon Hammer Slashing Weapon Longsword +1 Piercing Weapon Plasma Lance Special Melee Weapon Datajack Build | -11 -10 -10 -10 -9 -8 -8 -8 -8 -7 -7 -7 -7 -6 -6 -5 -5 -4 -4 -3 -3 -2 -2 -2 -2 -1 -1 ------- Run | Jun Mat Min Exi Min Mat Gar Mat Gar Fac Gar Fac Gar Fac Gar Fac Gar Fac Gar Res Gar Res Gar Res Gar Acc Com Slots Evolved 18 | . . . . . 4 . . . 2 . . . 2 . 2 . 2 . 2 . 2 . . . 2 . Power 2 | . . . . . . . . . . . . . 1 . . . . . . . 1 . . . . . Propulsion 4 | . . . . . 2 . . . . . . . . . . . . . . . . . . . 2 . Utility 12 | . . . . . 2 . . . 2 . . . 1 . 2 . 2 . 2 . 1 . . . . . Weapon . | . . . . . . . . . . . . . . . . . . . . . . . . . . . Parts Attached 430 | . 22 . 7 4 11 24 7 25 36 21 . 39 8 7 9 11 2 16 19 66 26 16 5 15 10 24 Power 35 | . 2 . 1 . . 3 . 2 1 1 . 4 1 . 1 . . 1 1 5 8 1 2 . 1 . Engine 4 | . 1 . 1 . . 1 . 1 . . . . . . . . . . . . . . . . . . Core 8 | . 1 . . . . 2 . 1 1 1 . 2 . . . . . . . . . . . . . . Reactor 23 | . . . . . . . . . . . . 2 1 . 1 . . 1 1 5 8 1 2 . 1 . Propulsion 89 | . 14 . 2 2 3 2 1 4 14 8 . 9 . . . . . 2 3 14 3 1 . 1 5 1 Treads 39 | . 6 . . . 1 . . . 7 5 . 3 . . . . . 2 3 8 . . . . 3 1 Leg 36 | . . . 2 2 2 2 1 4 1 3 . 6 . . . . . . . 6 3 1 . 1 2 . Wheel 14 | . 8 . . . . . . . 6 . . . . . . . . . . . . . . . . . Hover . | . . . . . . . . . . . . . . . . . . . . . . . . . . . Flight . | . . . . . . . . . . . . . . . . . . . . . . . . . . . Utility 171 | . 2 . 2 2 4 8 2 6 7 4 . 12 6 6 7 9 2 9 12 32 6 8 2 10 4 9 Device 48 | . 1 . 1 2 2 1 . . 3 2 . 6 2 1 1 2 1 . 3 15 1 . . 2 . 2 Storage 5 | . 1 . 1 . . . . . . . . 1 . . . . . . 1 . . 1 . . . . Processor 11 | . . . . . 1 1 . . 2 . . . . . . . . . 2 3 1 . . . . 1 Hackware 67 | . . . . . . 1 1 3 1 . . 4 3 3 3 6 1 7 1 8 4 6 2 7 3 3 Protection 40 | . . . . . 1 5 1 3 1 2 . 1 1 2 3 1 . 2 5 6 . 1 . 1 1 3 Artifact . | . . . . . . . . . . . . . . . . . . . . . . . . . . . Weapon 135 | . 4 . 2 . 4 11 4 13 14 8 . 14 1 1 1 2 . 4 3 15 9 6 1 4 . 14 Energy Gun 15 | . . . . . 1 2 . . 2 3 . 2 . . . . . . . 3 1 1 . . . . Energy Cannon 8 | . 1 . . . . . . . . . . . . . . 1 . 2 2 2 . . . . . . Ballistic Gun 25 | . . . . . 3 4 . 2 4 3 . 5 . . . . . . . . . . . . . 4 Ballistic Cannon 11 | . . . 1 . . . . . . . . . . . . . . . . 1 4 2 . 1 . 2 Launcher 12 | . . . . . . 3 1 3 2 1 . . . . . . . . . . . . . . . 2 Special Weapon 28 | . 3 . . . . . . . 2 . . 2 1 1 1 1 . . 1 5 4 2 . 2 . 3 Impact Weapon 2 | . . . . . . 2 . . . . . . . . . . . . . . . . . . . . Slashing Weapon 25 | . . . 1 . . . 2 4 4 1 . 3 . . . . . 2 . 3 . 1 1 1 . 2 Piercing Weapon 1 | . . . . . . . . . . . . . . . . . . . . 1 . . . . . . Special Melee Weapon 8 | . . . . . . . 1 4 . . . 2 . . . . . . . . . . . . . 1 Unidentified Prototypes 23 | . . . 3 2 2 . . . 2 . . . . . 1 . . . . 11 . . . . . 2 Parts Lost 104 | . 3 . 2 . . 7 1 11 6 6 . 12 . . . . . 3 8 15 2 3 . . . 25 Power 13 | . 1 . 1 . . 2 . 1 . . . 1 . . . . . . 1 3 . . . . . 3 Propulsion 30 | . . . . . . . 1 5 2 5 . 6 . . . . . 1 1 4 . 1 . . . 4 Utility 37 | . . . . . . 4 . 3 1 . . 1 . . . . . 2 4 5 1 2 . . . 14 Weapon 24 | . 2 . 1 . . 1 . 2 3 1 . 4 . . . . . . 2 3 1 . . . . 4 Highest Loss Streak 21 | . 1 . 2 . . 4 1 5 2 3 . 6 . . . . . 1 3 10 2 2 . . . 21 To Critical Strikes . | . . . . . . . . . . . . . . . . . . . . . . . . . . . Average Slot Usage (%) 91 | . 83 100 91 100 88 99 90 89 95 90 92 90 86 85 87 87 89 88 91 88 95 92 99 98 91 79 Engine 2 | . 13 14 13 14 9 4 . 2 . . . . . . . . . . . . . . . . . . Core 2 | . . . . . . 4 9 6 7 7 7 6 . . . . . . . . . . . . . . Reactor 5 | . . . . . . . . . . . . . 13 13 11 11 10 10 7 8 13 13 13 13 12 10 Treads 7 | . 9 14 5 . 2 . . . 16 16 7 2 13 13 11 11 10 10 15 9 . . . . 8 11 Leg 11 | . 2 . 15 28 33 36 36 34 1 6 23 25 . . . . . . . 6 17 17 17 17 7 . Wheel 2 | . 15 14 6 . . . . . 11 2 . . . . . . . . . . . . . . . . Device 8 | . . 14 5 13 15 5 . . 15 18 15 9 9 6 5 9 15 11 9 10 14 5 4 7 8 4 Storage 7 | . 14 14 16 14 9 9 9 9 7 7 7 7 6 6 5 5 5 5 4 4 4 6 7 4 4 3 Processor 1 | . . . . . . 4 3 . 2 3 . . . . . . . . . 2 1 3 . . . 3 Hackware 20 | . . . . . . 6 14 13 14 7 7 15 24 26 30 23 26 27 33 32 37 38 47 45 39 32 Protection 4 | . . . . . 1 10 9 5 4 4 7 5 5 5 8 11 10 9 9 3 . 2 . . 4 6 Energy Gun 1 | . 9 . . . 1 3 . . 2 2 . 1 . . . . . . . 1 . . . . . . Energy Cannon 1 | . 9 14 6 . . . . . . . . . . . . . . 1 3 1 . . . . . . Ballistic Gun 1 | . . . . . 7 5 . 2 1 6 7 5 . . . . . . . . . . . . . 2 Special Weapon 3 | . 6 14 10 . . . . . . . . . 6 6 5 4 5 3 3 3 3 2 4 3 4 2 Slashing Weapon 3 | . . . 7 14 4 . 8 5 6 4 7 6 6 6 5 5 5 4 . 1 . . 4 3 4 1 Naked Turns 3 | . . . . . . . . . . . . . . . . . . . . . . . . . . 3 Heaviest Build 193 | 11 90 90 94 94 102 110 112 117 112 121 119 119 129 129 132 140 135 141 140 152 172 175 158 178 193 181 Greatest Support 180 | 20 40 10 60 60 105 110 110 95 62 80 40 145 145 145 145 145 145 145 128 130 118 118 118 118 180 180 Greatest Overweight (x) 32 | . 8 8 8 1 1 1 1 2 8 9 2 32 . . . . . 1 1 2 1 1 1 1 1 1 Average Overweight (x) 1 | . 5 8 4 1 . . . 1 3 3 2 1 . . . . . . . . 1 1 1 1 . . Largest Inventory Capacity 25 | . 25 25 25 25 25 25 25 25 25 25 25 25 25 25 25 25 25 25 25 25 25 25 25 25 25 25 Average Capacity 24 | . 23 25 25 25 25 25 25 25 25 25 25 25 25 25 25 25 25 25 25 25 25 25 25 25 25 23 Most Carried 25 | . 25 25 25 25 25 25 25 25 25 25 25 25 25 25 25 25 24 25 25 25 25 25 25 25 25 25 Average Carried 23 | . 19 25 23 25 24 24 24 24 24 24 25 23 24 23 24 24 23 24 23 24 22 22 24 24 24 22 Final Capacity 25 | 8 25 25 25 25 25 25 25 25 25 25 25 25 25 25 25 25 25 25 25 25 25 25 25 25 25 5 Final Carried 25 | 6 25 25 25 25 25 24 25 22 24 25 25 25 24 25 25 24 24 25 25 24 23 25 24 25 25 . Class Distribution -------------------- 55% | Botlord-Mutant 20% | Mutant 13% | Bothacker-Mutant 8% | Scavenger-Mutant Dominant Class ---------------- Mutant | -10/Materials Mutant | -10/Mines Mutant | -10/Exiles Mutant | -9/Mines Scavenger-Mutant | -8/Materials Scavenger-Mutant | -8/Garrison Bothacker-Mutant | -8/Materials Bothacker-Mutant | -8/Garrison Mutant | -7/Factory Bothacker-Mutant | -7/Garrison Botlord-Mutant | -7/Factory Botlord-Mutant | -7/Garrison Botlord-Mutant | -6/Factory Botlord-Mutant | -6/Garrison Botlord-Mutant | -5/Factory Botlord-Mutant | -5/Garrison Botlord-Mutant | -4/Factory Botlord-Mutant | -4/Garrison Botlord-Mutant | -3/Research Botlord-Mutant | -3/Garrison Botlord-Mutant | -2/Research Botlord-Mutant | -2/Garrison Botlord-Mutant | -2/Research Botlord-Mutant | -2/Garrison Botlord-Mutant | -1/Access Botlord-Mutant | -1/Command Resources | -11 -10 -10 -10 -9 -8 -8 -8 -8 -7 -7 -7 -7 -6 -6 -5 -5 -4 -4 -3 -3 -2 -2 -2 -2 -1 -1 ----------- Run | Jun Mat Min Exi Min Mat Gar Mat Gar Fac Gar Fac Gar Fac Gar Fac Gar Fac Gar Res Gar Res Gar Res Gar Acc Com Matter Collected 8614 | 200 352 . 60 40 258 629 99 264 708 188 . 681 120 88 . 489 45 279 329 982 831 484 . 581 268 639 Remotely 307 | . . . . . . . . . . . . 307 . . . . . . . . . . . . . . Salvage Created 9124 | . 1135 . 143 378 534 775 313 372 1590 489 . 595 50 . . 107 . 142 356 530 150 459 . 41 276 689 Parts 457 | . 53 . 5 24 24 48 18 21 99 28 . 31 . . . 5 . 1 20 20 4 11 . 3 11 31 Haulers Intercepted 4 | . 2 . . . . . 1 . 1 . . . . . . . . . . . . . . . . . Recyclers Shooed 14 | . 4 . . . 3 . . . 2 . . . . . . . . . 1 . . . . . 1 3 Parts Field Recycled . | . . . . . . . . . . . . . . . . . . . . . . . . . . . Retrieved Matter . | . . . . . . . . . . . . . . . . . . . . . . . . . . . Parts Self-Destructed . | . . . . . . . . . . . . . . . . . . . . . . . . . . . Prevented . | . . . . . . . . . . . . . . . . . . . . . . . . . . . Kills | -11 -10 -10 -10 -9 -8 -8 -8 -8 -7 -7 -7 -7 -6 -6 -5 -5 -4 -4 -3 -3 -2 -2 -2 -2 -1 -1 ------- Run | Jun Mat Min Exi Min Mat Gar Mat Gar Fac Gar Fac Gar Fac Gar Fac Gar Fac Gar Res Gar Res Gar Res Gar Acc Com Combat Hostiles Destroyed 147 | . 14 . 1 . 5 23 5 17 23 14 . 12 1 . . 2 . 2 4 7 2 5 . 1 . 9 Melee 35 | . . . 1 . 2 . 5 1 10 1 . 3 1 . . 2 . 2 1 5 . . . . . 1 Guns 58 | . 4 . . . 3 15 . 3 8 10 . 9 . . . . . . . . . 1 . . . 5 Cannons 21 | . 9 . . . . . . . . . . . . . . . . . 2 2 2 4 . 1 . 1 AOE 32 | . 1 . . . . 8 . 13 5 3 . . . . . . . . . . . . . . . 2 Classes Destroyed 22 | . 7 . 1 1 2 . . . 3 2 . . . . . . . . 1 1 . 1 . . . 3 Worker 14 | . 4 . . 2 . . 1 . 6 . . . . . . . . . . . . . . . . 1 Builder 6 | . 3 . . 2 . . . . 1 . . . . . . . . . . . . . . . . . Tunneler 5 | . . . . 3 . . . . . . . . . . . . . . 1 . . . . . 1 . Hauler 4 | . 2 . . . . . 1 . 1 . . . . . . . . . . . . . . . . . Recycler 15 | . 4 . . 3 3 . . . 3 . . . . . . . . . . . . . . . 2 . Mechanic 3 | . . . . . . . . . . . . . . . . . . . 1 . . . . . . 2 Operator 4 | . 1 . . . 2 . . . 1 . . . . . . . . . . . . . . . . . Watcher 6 | . . . . . . . . . 2 . . 1 . . . . . 1 1 . 1 . . . . . Swarmer 26 | . 3 . . . . 7 . 7 . 6 . 3 . . . . . . . . . . . . . . Cutter 3 | . . . . . . . . . . 3 . . . . . . . . . . . . . . . . Grunt 61 | . 11 . . . 2 9 2 7 13 2 . 7 . . . . . . 1 1 . 5 . . . 1 Brawler 1 | . . . . . . . . . 1 . . . . . . . . . . . . . . . . . Duelist 2 | . . . . . . . . . . . . . . . . . . . . . . 1 . . . 1 Protector 1 | . . . . . . . . . . . . . . . . . . . . . . . . . . 1 Sentry 16 | . . . . . 1 4 3 2 6 . . . . . . . . . . . . . . . . . Demolisher 1 | . . . . . . . . . . . . . . . . . . . . . . . . . . 1 Specialist 2 | . . . . . . . . . . 2 . . . . . . . . . . . . . . . . Hunter 9 | . . . . . 2 3 . 1 . 1 . . . . . . . . 1 . 1 . . . . . Programmer 23 | . . . . . . . . . 3 . . 3 1 . . 2 . 2 2 5 . . . 1 . 4 Behemoth 3 | . . . . . . . . . . . . . . . . . . . . 1 1 . . . . 1 Investigator 1 | . . . . . . . . . . . . . . . . . . . . . . . . . . 1 Zionite 1 | . . . 1 . . . . . . . . . . . . . . . . . . . . . . . Best Kill Streak 7 | . 4 . 1 4 5 5 2 7 7 6 . 2 1 . . 2 . 2 3 3 1 2 . 1 2 6 Combat Bots Only 7 | . 3 . 1 . 2 5 2 7 4 6 . 2 1 . . 2 . 2 2 3 1 2 . 1 . 2 Max Kills in Single Turn 3 | . 2 . 1 1 1 3 1 3 2 2 . 1 1 . . 1 . 1 1 1 1 1 . 1 1 2 Gunslinging 1 | . . . . . . 1 . . . 1 . . . . . . . . . . . . . . . . Exploded 3 | . 1 . . . . 3 . 3 1 2 . . . . . . . . . . . . . . . 2 Melee 1 | . . . 1 . 1 . 1 1 1 1 . 1 1 . . 1 . 1 1 1 . . . . . 1 Uniques/NPCs Destroyed 1 | . . . 1 . . . . . . . . . . . . . . . . . . . . . . . 8R-AWN (-10/Exiles) Combat | -11 -10 -10 -10 -9 -8 -8 -8 -8 -7 -7 -7 -7 -6 -6 -5 -5 -4 -4 -3 -3 -2 -2 -2 -2 -1 -1 -------- Run | Jun Mat Min Exi Min Mat Gar Mat Gar Fac Gar Fac Gar Fac Gar Fac Gar Fac Gar Res Gar Res Gar Res Gar Acc Com Damage Taken 24104 | . 674 . 671 . 152 1475 360 1265 1384 764 . 1762 108 154 38 359 86 1190 1722 2919 497 779 41 204 474 7026 Core 3672 | . 121 . 76 . 14 153 58 171 196 79 . 329 14 15 14 27 33 79 163 421 . 56 . 22 61 1570 Absorbed by Shields 5232 | . . . . . . . . 31 . 161 . 212 32 44 11 150 27 439 27 428 173 370 40 206 150 2731 Redirected to Shielding 384 | . . . . . . 2 . . . . . . . . . 16 . 89 91 110 . . . . . 76 Regen/Repaired (Parts) 60 | . . . . . . . . . . . . . . . . 60 . . . . . . . . . . Core Remaining (%) 65 | 100 . . . 21 . . . 28 . . . 13 . 96 . 95 . 90 . 55 . . . 94 . . Volleys Fired 721 | . 98 . 1 . 15 62 . 23 31 32 . 60 7 8 5 14 4 32 60 71 53 43 6 34 14 48 Largest 2 | . 2 . 1 . 2 2 . 1 2 2 . 2 1 1 1 1 1 1 1 1 1 1 1 1 1 2 Hottest 117 | . 80 . 20 . 89 91 . 39 100 100 . 117 5 5 7 81 7 90 90 90 65 65 7 60 10 94 Shots Fired 863 | . 134 . 1 . 30 85 . 23 44 47 . 87 7 8 5 14 4 32 59 70 53 43 6 34 14 63 Gun 387 | . 80 . . . 30 71 . 11 31 43 . 70 . . . . . . . 4 10 3 . . . 34 Cannon 140 | . 36 . . . . . . . . . . . . . . 1 . 11 37 18 16 14 . 4 . 3 Launcher 46 | . . . . . . 14 . 12 9 4 . . . . . . . . . . . . . . . 7 Special 290 | . 18 . 1 . . . . . 4 . . 17 7 8 5 13 4 21 22 48 27 26 6 30 14 19 Kinetic 245 | . . . . . 26 58 . 11 12 16 . 51 . . . . . . . . 16 14 . 4 . 37 Thermal 265 | . 95 . 1 . 4 13 . . 23 27 . 19 . . . . . 11 37 22 10 3 . . . . Explosive 46 | . . . . . . 14 . 12 9 4 . . . . . . . . . . . . . . . 7 Electromagnetic 40 | . 39 . . . . . . . . . . . . . . 1 . . . . . . . . . . Robot Hit Streak 18 | . 13 . . . 8 14 . 5 8 5 . 12 4 3 4 6 2 8 6 14 16 8 3 18 5 12 Robot Miss Streak 7 | . 3 . 2 . 2 6 . 1 2 7 . 5 3 2 2 2 2 2 4 3 5 3 1 3 1 6 Penetration Max 1 | . . . . . 1 1 . . 1 . . . . . . . . . . . . . . . . 1 Secondary Targets 6 | . . . . . . 2 . . . 1 . 2 . . . . . . . . . . . . . 1 Max Gunslinging Chain 1 | . . . . . . 1 . . . 1 . 1 . . . . . . . . . . . . . 1 Shots Hit Robots 753 | . 83 . 13 10 21 51 20 24 77 34 . 68 8 6 3 19 2 29 35 61 43 34 4 24 14 70 Core Hits 374 | . 40 . 4 6 11 42 3 29 48 27 . 18 . . . 1 . 4 8 15 14 12 . 2 3 87 Critical Kills 16 | . . . . . 4 5 . 2 3 . . . . . . . . . 1 . . . . . . 1 Critical Parts Destroyed 15 | . . . . . 2 8 . 2 2 . . . . . . . . . . . . . . . . 1 Critical Strikes 44 | . . . . . 6 14 2 5 10 1 . 2 . . . 1 . . 1 . . . . . . 2 Burn 1 | . . . . . . 1 . . . . . . . . . . . . . . . . . . . . Meltdown 1 | . . . . . . . . . . . . . . . . . . . 1 . . . . . . . Destroy 30 | . . . . . 6 13 . 4 5 . . . . . . . . . . . . . . . . 2 Sever 12 | . . . . . . . 2 1 5 1 . 2 . . . 1 . . . . . . . . . . Melee Attacks 287 | . . . 14 10 7 19 27 30 64 9 . 16 7 5 . 11 . 14 . 23 2 2 1 4 3 19 Impact 19 | . . . . . . 19 . . . . . . . . . . . . . . . . . . . . Slashing 249 | . . . 14 10 7 . 22 22 63 9 . 13 7 5 . 11 . 14 . 23 2 2 1 4 3 17 Piercing . | . . . . . . . . . . . . . . . . . . . . . . . . . . . Sneak Attacks 49 | . . . 1 10 1 . 5 2 13 . . 2 . . . 1 . . . 2 1 . . 1 2 8 Combat Hostiles 11 | . . . . . . . 2 . . . . 1 . . . 1 . . . 1 1 . . 1 . 4 Follow-up Attacks 3 | . . . . . . . . . . . . . . . . . . . . . . . . . . 3 Damage Inflicted 26263 | . 1374 . 672 902 554 1851 1027 2011 4200 1187 . 1371 190 . . 434 . 519 779 926 989 667 . 381 274 5955 Guns 5623 | . 699 . . . 331 882 . 146 541 562 . 871 . . . . . . . . 120 62 . . . 1409 Cannons 3669 | . 474 . . . . . . . . . . . . . . . . 255 686 429 738 605 . 295 . 187 Explosions 7308 | . 111 . . . . 954 . 1610 915 340 . . . . . . . . . . . . . . . 3378 Melee 9299 | . . . 672 902 223 15 1027 255 2714 285 . 500 190 . . 434 . 230 . 497 50 . . 86 263 956 Ramming 256 | . 12 . . . . . . . . . . . . . . . . 34 93 . 81 . . . 11 25 Kinetic 5264 | . . . . . 243 656 . 146 218 173 . 594 . . . . . . . . 738 605 . 295 . 1596 Thermal 3864 | . 979 . . . 88 226 . . 353 389 . 277 . . . . . 255 686 429 120 62 . . . . Explosive 7197 | . . . . . . 954 . 1610 915 340 . . . . . . . . . . . . . . . 3378 Electromagnetic 383 | . 383 . . . . . . . . . . . . . . . . . . . . . . . . . Impact 15 | . . . . . . 15 . . . . . . . . . . . . . . . . . . . . Slashing 9284 | . . . 672 902 223 . 1027 255 2714 285 . 500 190 . . 434 . 230 . 497 50 . . 86 263 956 Piercing . | . . . . . . . . . . . . . . . . . . . . . . . . . . . Highest Corruption 30 | . . . . . . . . . 2 2 . 2 7 8 . 1 . 2 8 22 1 1 1 1 2 30 Average Corruption 5 | . . . . . . . . . 2 1 . 1 6 7 . 1 . 1 4 19 1 1 1 1 2 4 Corruption Purged 4 | . . . . . . . . . . 2 . 2 . . . . . . . . . . . . . . Corruption Blocked . | . . . . . . . . . . . . . . . . . . . . . . . . . . . Effects 188 | . . . . . . . . . 1 3 . 10 11 15 . 3 . 3 16 80 5 7 . 11 4 19 Message Errors 36 | . . . . . . . . . . 1 . . 1 4 . . . 1 4 15 . . . 3 1 6 Matter Fused 42 | . . . . . . . . . . . . 1 5 3 . 1 . 1 3 17 2 1 . 5 1 2 Heat Flow Errors 23 | . . . . . . . . . . . . 3 1 3 . 1 . . 1 8 . 2 . 2 2 . Energy Discharges 29 | . . . . . . . . . . 1 . 1 . 1 . 1 . . 1 18 1 2 . . . 3 Parts Rejected 1 | . . . . . . . . . . . . . . 1 . . . . . . . . . . . . Parts Fused 2 | . . . . . . . . . . . . . . . . . . . . 2 . . . . . . Data Loss (minor) 28 | . . . . . . . . . . . . 2 4 3 . . . . 3 10 2 1 . . . 3 Data Loss (major) 14 | . . . . . . . . . . 1 . 3 . . . . . . . 7 . 1 . . . 2 Misfires 3 | . . . . . . . . . 1 . . . . . . . . . 1 1 . . . . . . Alerts 4 | . . . . . . . . . . . . . . . . . . 1 1 . . . . 1 . 1 Misdirections 1 | . . . . . . . . . . . . . . . . . . . . . . . . . . 1 Weapon Failures 5 | . . . . . . . . . . . . . . . . . . . 2 2 . . . . . 1 Overload Shots . | . . . . . . . . . . . . . . . . . . . . . . . . . . . Overflow Damage 1690 | . 13 . 15 251 47 . 362 164 355 34 . 73 67 . . 50 . 10 30 . . . . 15 35 169 Projectiles 54 | . 4 . . . . . . . . . . . . . . . . . 30 . . . . 15 . 5 Explosions 337 | . 9 . . . . . . 164 . . . . . . . . . . . . . . . . . 164 Melee 1299 | . . . 15 251 47 . 362 . 355 34 . 73 67 . . 50 . 10 . . . . . . 35 . Knockbacks 9 | . . . . . . . . . . . . . . . . . . . 1 . 3 2 . 2 . 1 Impact 1 | . . . . . . . . . . . . . . . . . . . 1 . . . . . . . Kinetic 8 | . . . . . . . . . . . . . . . . . . . . . 3 2 . 2 . 1 Secondary . | . . . . . . . . . . . . . . . . . . . . . . . . . . . Self-Inflicted Damage 575 | . 6 . . . . 109 . 158 72 84 . . . . . . . . . . . . . . . 146 Shots 23 | . . . . . . 8 . 6 2 2 . . . . . . . . . . . . . . . 5 Rammed 13 | . 1 . . . . . . . . . . . . . . . . 4 7 . . . . . . 1 Targets Rammed 22 | . 1 . . . . . . . . . . . . . . . . 4 9 . 6 . . . 1 1 Kicked 7 | . . . . . . . . . . . . . . . . . . . . . 6 . . . 1 . Crushed 2 | . . . . . . . . . . . . . . . . . . . 2 . . . . . . . Highest Temperature 330 | . 330 . . . 63 22 16 36 99 315 . 225 159 245 . 208 . 254 270 230 241 214 . 250 267 77 Average Temperature 73 | . 81 . . . 37 12 11 13 30 108 . 65 76 113 . 85 . 83 76 69 70 83 . 80 113 24 Received Heat Transfer 4066 | . 342 . . . 36 342 261 372 558 117 . 663 14 30 . 18 . 270 26 236 65 165 4 24 13 510 Effects 4 | . 2 . . . . . . . . . . . . . . . . . 1 . 1 . . . . . Energy Bleed 1 | . . . . . . . . . . . . . . . . . . . . . 1 . . . . . Interference 2 | . 1 . . . . . . . . . . . . . . . . . 1 . . . . . . . Short Circuit 1 | . 1 . . . . . . . . . . . . . . . . . . . . . . . . . Siege Activations . | . . . . . . . . . . . . . . . . . . . . . . . . . . . Robots Corrupted . | . . . . . . . . . . . . . . . . . . . . . . . . . . . Combat Hostiles . | . . . . . . . . . . . . . . . . . . . . . . . . . . . Parts Fried 2 | . 1 . . . . . . . . . . . . . . . . . . . . . . . . 1 Impact Corruptions . | . . . . . . . . . . . . . . . . . . . . . . . . . . . Robots Melted 1 | . . . . . . . . . . . . . . . . . . . 1 . . . . . . . Combat Hostiles 1 | . . . . . . . . . . . . . . . . . . . 1 . . . . . . . Parts Melted 16 | . 3 . . . 1 . . . 2 4 . . . . . 1 . . 4 . . 1 . . . . Heat Transferred 5856 | . 2008 . . . 148 481 . . 642 745 . 333 . . . . . 259 666 407 93 74 . . . . Parts Sabotaged . | . . . . . . . . . . . . . . . . . . . . . . . . . . . Parts Stolen . | . . . . . . . . . . . . . . . . . . . . . . . . . . . Parts Stripped . | . . . . . . . . . . . . . . . . . . . . . . . . . . . Power Chain Reactions 2 | . 2 . . . . . . . . . . . . . . . . . . . . . . . . . Missiles Intercepted . | . . . . . . . . . . . . . . . . . . . . . . . . . . . Alert | -11 -10 -10 -10 -9 -8 -8 -8 -8 -7 -7 -7 -7 -6 -6 -5 -5 -4 -4 -3 -3 -2 -2 -2 -2 -1 -1 ------- Run | Jun Mat Min Exi Min Mat Gar Mat Gar Fac Gar Fac Gar Fac Gar Fac Gar Fac Gar Res Gar Res Gar Res Gar Acc Com Peak Influence 1873 | . 291 52 . 40 304 860 593 954 688 814 427 809 443 710 372 947 593 720 517 966 546 877 552 1155 1873 1852 Initial 1198 | . . 52 . . 3 67 419 280 500 481 427 298 424 177 372 155 497 415 386 271 543 200 492 384 692 1198 Average 492 | . 151 32 . 13 119 546 471 649 381 683 427 609 384 376 323 397 557 572 321 515 349 622 531 859 1095 1522 Maximum Alert Level 5 | . 1 . . . 1 3 2 3 2 3 2 3 2 3 1 3 2 3 2 3 2 3 2 4 5 5 Low Security (%) 17 | . 72 100 . 100 80 6 . . 3 . . . . 32 21 39 . . 13 . 2 . . . . . Level 1 24 | . 27 . . . 19 10 6 24 56 . . 14 27 29 78 27 . . 70 11 71 16 . 3 . . Level 2 36 | . . . . . . 51 93 23 39 61 100 54 72 19 . 1 100 94 15 76 26 45 100 16 2 . Level 3 17 | . . . . . . 31 . 51 . 38 . 30 . 19 . 31 . 5 . 12 . 37 . 74 81 . Level 4 1 | . . . . . . . . . . . . . . . . . . . . . . . . 4 2 50 Level 5 . | . . . . . . . . . . . . . . . . . . . . . . . . . 14 2 High Security 1 | . . . . . . . . . . . . . . . . . . . . . . . . . . 47 Max Security . | . . . . . . . . . . . . . . . . . . . . . . . . . . . Squads Dispatched 44 | . 2 . . . 3 . 1 . 6 . . . 1 . . . . . 5 . 4 . 2 . 7 13 Investigation 6 | . 2 . . . . . 1 . 1 . . . . . . . . . . . 1 . . . 1 . Extermination 8 | . . . . . . . . . 2 . . . 1 . . . . . 3 . 1 . . . . 1 Reinforcement 11 | . . . . . . . . . 1 . . . . . . . . . 2 . 2 . 1 . 2 3 Assault 12 | . . . . . . . . . . . . . . . . . . . . . . . . . 3 9 Garrison 7 | . . . . . 3 . . . 2 . . . . . . . . . . . . . 1 . 1 . Intercept . | . . . . . . . . . . . . . . . . . . . . . . . . . . . Searches Triggered 1 | . . . . . . . . . . . . . . . . . . . 1 . . . . . . . Construction Impeded . | . . . . . . . . . . . . . . . . . . . . . . . . . . . Haulers Reinforced 2 | . . . . . . . . . 1 . . . . . . . . . . . . . . . 1 . Active Scanning Responses . | . . . . . . . . . . . . . . . . . . . . . . . . . . . Cargo Convoy Interrupts . | . . . . . . . . . . . . . . . . . . . . . . . . . . . Stealth | -11 -10 -10 -10 -9 -8 -8 -8 -8 -7 -7 -7 -7 -6 -6 -5 -5 -4 -4 -3 -3 -2 -2 -2 -2 -1 -1 --------- Run | Jun Mat Min Exi Min Mat Gar Mat Gar Fac Gar Fac Gar Fac Gar Fac Gar Fac Gar Res Gar Res Gar Res Gar Acc Com Distress Signals 10 | . 1 . . . 1 . 1 . 1 . . . . . . . . . 2 . 1 . 1 . 1 1 Communications Jammed 725 | . . . . . . . . . . . . . . . . . 79 45 28 . 5 . 24 . 86 458 Distress Signals 719 | . . . . . . . . . . . . . . . . . 79 45 28 . . . 23 . 86 458 Times Spotted 586 | . 28 . 12 . 9 23 16 26 32 15 . 35 4 16 5 28 4 27 30 46 27 29 5 30 46 93 Peak Tracking Total 25 | . 5 . 4 . 3 5 3 4 5 4 . 7 1 5 4 9 2 7 3 7 5 7 4 5 7 25 Tactical Retreats 11 | . . . 2 . 1 . . 2 . 1 . . . 1 1 . . . . . 1 . . . . 2 Traps | -11 -10 -10 -10 -9 -8 -8 -8 -8 -7 -7 -7 -7 -6 -6 -5 -5 -4 -4 -3 -3 -2 -2 -2 -2 -1 -1 ------- Run | Jun Mat Min Exi Min Mat Gar Mat Gar Fac Gar Fac Gar Fac Gar Fac Gar Fac Gar Res Gar Res Gar Res Gar Acc Com Traps Triggered 44 | . . . . . . 3 1 8 . 3 . 1 2 . 1 2 . 3 . 7 2 6 . 4 1 . Indirectly . | . . . . . . . . . . . . . . . . . . . . . . . . . . . Trap Hack Attempts . | . . . . . . . . . . . . . . . . . . . . . . . . . . . Triggered . | . . . . . . . . . . . . . . . . . . . . . . . . . . . Disarmed . | . . . . . . . . . . . . . . . . . . . . . . . . . . . Reprogrammed . | . . . . . . . . . . . . . . . . . . . . . . . . . . . Reused . | . . . . . . . . . . . . . . . . . . . . . . . . . . . Traps Extracted . | . . . . . . . . . . . . . . . . . . . . . . . . . . . Installed . | . . . . . . . . . . . . . . . . . . . . . . . . . . . Triggered . | . . . . . . . . . . . . . . . . . . . . . . . . . . . Machines | -11 -10 -10 -10 -9 -8 -8 -8 -8 -7 -7 -7 -7 -6 -6 -5 -5 -4 -4 -3 -3 -2 -2 -2 -2 -1 -1 ---------- Run | Jun Mat Min Exi Min Mat Gar Mat Gar Fac Gar Fac Gar Fac Gar Fac Gar Fac Gar Res Gar Res Gar Res Gar Acc Com Machines Disabled 44 | . 3 . . . 3 3 . 3 2 . . 1 . 3 . 1 . 3 2 7 . 4 . 3 2 4 Max in Single Turn 2 | . 1 . . . 1 1 . 1 1 . . 1 . 1 . 1 . 1 . 1 . 1 . 1 . 2 Garrison Access 1 | . . . . . . . . . . . . . . . . . . . . . . . . . 1 . Garrison Relay 22 | . . . . . . 2 . 3 . . . 1 . 2 . 1 . 2 . 4 . 4 . 3 . . Phase Generator 1 | . . . . . . . . . . . . . . . . . . . . . . . . . . 1 Energy Cycler 1 | . . . . . . . . . . . . . . . . . . . . . . . . . 1 . Machines Repaired . | . . . . . . . . . . . . . . . . . . . . . . . . . . . Machines Sabotaged . | . . . . . . . . . . . . . . . . . . . . . . . . . . . Overloaded Fab Kills . | . . . . . . . . . . . . . . . . . . . . . . . . . . . Hacking | -11 -10 -10 -10 -9 -8 -8 -8 -8 -7 -7 -7 -7 -6 -6 -5 -5 -4 -4 -3 -3 -2 -2 -2 -2 -1 -1 --------- Run | Jun Mat Min Exi Min Mat Gar Mat Gar Fac Gar Fac Gar Fac Gar Fac Gar Fac Gar Res Gar Res Gar Res Gar Acc Com Machines Accessed 58 | . 8 . . . 4 3 6 2 9 . 1 . 2 1 3 1 1 1 3 2 4 2 1 1 2 1 Terminals 42 | . 7 . . . 2 3 5 2 6 . . . 1 1 1 1 . 1 2 2 3 2 . 1 1 1 Fabricators 1 | . . . . . . . . . . . . . . . 1 . . . . . . . . . . . Repair Stations 2 | . . . . . . . . . 2 . . . . . . . . . . . . . . . . . Recycling Units 2 | . 1 . . . 1 . . . . . . . . . . . . . . . . . . . . . Scanalyzers . | . . . . . . . . . . . . . . . . . . . . . . . . . . . Garrison Access 11 | . . . . . 1 . 1 . 1 . 1 . 1 . 1 . 1 . 1 . 1 . 1 . 1 . Total Hacks 119 | . 24 . . . 9 7 18 2 21 . 1 . 3 2 4 1 1 1 5 2 7 3 1 1 4 2 Successful 47 | . 10 . . . 2 4 8 . 5 . 1 . 2 1 2 . 1 . 2 2 1 1 1 1 2 1 Failed 72 | . 14 . . . 7 3 10 2 16 . . . 1 1 2 1 . 1 3 . 6 2 . . 2 1 Catastrophic 17 | . 1 . . . 2 1 2 1 3 . . . . . 1 . . . 1 . 2 2 . . 1 . Database Lockouts . | . . . . . . . . . . . . . . . . . . . . . . . . . . . Manual 66 | . 16 . 1 . 5 2 17 1 13 . . . 2 1 2 1 . 1 4 . . . . . . . Terminals 96 | . 20 . . . 5 7 17 2 16 . . . 2 2 2 1 . 1 4 2 6 3 . 1 3 2 Fabricators 1 | . . . . . . . . . . . . . . . 1 . . . . . . . . . . . Repair Stations 3 | . . . . . . . . . 3 . . . . . . . . . . . . . . . . . Recycling Units 7 | . 4 . . . 3 . . . . . . . . . . . . . . . . . . . . . Scanalyzers . | . . . . . . . . . . . . . . . . . . . . . . . . . . . Garrison Access 12 | . . . . . 1 . 1 . 2 . 1 . 1 . 1 . 1 . 1 . 1 . 1 . 1 . Terminal Hacks 18 | . 6 . . . . 3 1 . 1 . . . . 1 . . . . . 2 . 1 . 1 1 1 Robot Schematic 1 | . 1 . . . . . . . . . . . . . . . . . . . . . . . . . Robot Analysis 1 | . 1 . . . . . . . . . . . . . . . . . . . . . . . . . Open Door 3 | . . . . . . 1 . . . . . . . . . . . . . 1 . . . . 1 . Branch Access Points 1 | . 1 . . . . . . . . . . . . . . . . . . . . . . . . . Emergency Access Points 3 | . . . . . . 1 . . . . . . . . . . . . . . . . . 1 . 1 Terminal Index 3 | . 1 . . . . . 1 . 1 . . . . . . . . . . . . . . . . . Hauler Manifests 1 | . 1 . . . . . . . . . . . . . . . . . . . . . . . . . Zone Layout 1 | . 1 . . . . . . . . . . . . . . . . . . . . . . . . . Garrison Registry 2 | . . . . . . . . . . . . . . . . . . . . 1 . 1 . . . . Patrol Navigation 1 | . . . . . . . . . . . . . . 1 . . . . . . . . . . . . Security Stations 1 | . . . . . . 1 . . . . . . . . . . . . . . . . . . . . Fabricator Hacks 1 | . . . . . . . . . . . . . . . 1 . . . . . . . . . . . Build 1 | . . . . . . . . . . . . . . . 1 . . . . . . . . . . . Repair Station Hacks . | . . . . . . . . . . . . . . . . . . . . . . . . . . . Recycling Unit Hacks 1 | . 1 . . . . . . . . . . . . . . . . . . . . . . . . . Report Inventory 1 | . 1 . . . . . . . . . . . . . . . . . . . . . . . . . Scanalyzer . | . . . . . . . . . . . . . . . . . . . . . . . . . . . Garrison Access Hacks 11 | . . . . . 1 . 1 . 1 . 1 . 1 . 1 . 1 . 1 . 1 . 1 . 1 . Unlock Access 10 | . . . . . 1 . 1 . 1 . 1 . 1 . 1 . 1 . 1 . 1 . 1 . . . Seal Access 1 | . . . . . . . . . . . . . . . . . . . . . . . . . 1 . Unauthorized Hacks 16 | . 3 . . . 1 1 6 . 3 . . . 1 . . . . . 1 . . . . . . . Terminals 15 | . 2 . . . 1 1 6 . 3 . . . 1 . . . . . 1 . . . . . . . Track 1 | . . . . . . . 1 . . . . . . . . . . . . . . . . . . . Botnet 9 | . 1 . . . . 1 4 . 2 . . . . . . . . . 1 . . . . . . . Operators 5 | . 1 . . . 1 . 1 . 1 . . . 1 . . . . . . . . . . . . . Fabricators . | . . . . . . . . . . . . . . . . . . . . . . . . . . . Repair Stations . | . . . . . . . . . . . . . . . . . . . . . . . . . . . Recycling Units 1 | . 1 . . . . . . . . . . . . . . . . . . . . . . . . . Tunnel 1 | . 1 . . . . . . . . . . . . . . . . . . . . . . . . . Scanalyzers . | . . . . . . . . . . . . . . . . . . . . . . . . . . . Garrison Access . | . . . . . . . . . . . . . . . . . . . . . . . . . . . Data Cores Recovered 5 | . 1 . . . 2 . . . 1 . . . . . . . . . 1 . . . . . . . Used 1 | . . . . . . . . . 1 . . . . . . . . . . . . . . . . . Hacking Detections 48 | . 8 . . . 4 3 5 2 9 . . . 2 1 2 1 1 1 2 1 3 1 . . 1 1 Full Trace Events 3 | . . . . . . . . . 1 . . . . . . . . . . . 1 . . . 1 . Feedback Events . | . . . . . . . . . . . . . . . . . . . . . . . . . . . Feedback Blocked . | . . . . . . . . . . . . . . . . . . . . . . . . . . . Robot Schematics Acquired 1 | . 1 . . . . . . . . . . . . . . . . . . . . . . . . . Robots Built 2 | . . . . . . . . . . . . . . . 2 . . . . . . . . . . . Authchips . | . . . . . . . . . . . . . . . . . . . . . . . . . . . Time 152 | . . . . . . . . . . . . . . . 152 . . . . . . . . . . . Total Robot Build Rating 10 | . . . . . . . . . . . . . . . 10 . . . . . . . . . . . Part Schematics Acquired . | . . . . . . . . . . . . . . . . . . . . . . . . . . . Parts Built . | . . . . . . . . . . . . . . . . . . . . . . . . . . . Authchips . | . . . . . . . . . . . . . . . . . . . . . . . . . . . Time . | . . . . . . . . . . . . . . . . . . . . . . . . . . . Total Part Build Rating . | . . . . . . . . . . . . . . . . . . . . . . . . . . . Parts Repaired . | . . . . . . . . . . . . . . . . . . . . . . . . . . . Time . | . . . . . . . . . . . . . . . . . . . . . . . . . . . Parts Recycled . | . . . . . . . . . . . . . . . . . . . . . . . . . . . Recycled Matter . | . . . . . . . . . . . . . . . . . . . . . . . . . . . Retrieved Matter . | . . . . . . . . . . . . . . . . . . . . . . . . . . . Retrieved Components . | . . . . . . . . . . . . . . . . . . . . . . . . . . . Parts Scanalyzed . | . . . . . . . . . . . . . . . . . . . . . . . . . . . Part Schematics Acquired . | . . . . . . . . . . . . . . . . . . . . . . . . . . . Parts Damaged . | . . . . . . . . . . . . . . . . . . . . . . . . . . . Bothacking | -11 -10 -10 -10 -9 -8 -8 -8 -8 -7 -7 -7 -7 -6 -6 -5 -5 -4 -4 -3 -3 -2 -2 -2 -2 -1 -1 ------------ Run | Jun Mat Min Exi Min Mat Gar Mat Gar Fac Gar Fac Gar Fac Gar Fac Gar Fac Gar Res Gar Res Gar Res Gar Acc Com Used RIF Installer 11 | . . . . . . 2 . 1 . 1 . 1 . 1 . 1 . 1 . 1 . 1 . 1 . . Coupler Efficiency 1 | . . . . . . . . . . 1 . . . . . . . . . . . . . . . . Code Merge 1 | . . . . . . . . . . . . . . . . . . 1 . . . . . . . . Command Fork 2 | . . . . . . . . . . . . . . . . . . . . . . 1 . 1 . . Signal Jammer 1 | . . . . . . . . . . . . . . . . 1 . . . . . . . . . . Zone Cloak 1 | . . . . . . 1 . . . . . . . . . . . . . . . . . . . . Robot Detection 1 | . . . . . . . . . . . . . . 1 . . . . . . . . . . . . Watcher Feeds 1 | . . . . . . . . . . . . 1 . . . . . . . . . . . . . . Structural Interface 1 | . . . . . . . . 1 . . . . . . . . . . . . . . . . . . Autooverride 1 | . . . . . . . . . . . . . . . . . . . . 1 . . . . . . Robots Hacked 179 | . . . . . . . 3 5 1 . . 10 3 4 3 9 1 13 14 25 17 15 5 20 13 18 Non-combat 19 | . . . . . . . . . . . . . 1 . 1 . . . 7 . 3 1 2 . 2 2 Combat 160 | . . . . . . . 3 5 1 . . 10 2 4 2 9 1 13 7 25 14 14 3 20 11 16 Autooverrided 19 | . . . . . . . . . . . . . . . . . . . . . 4 . 1 5 5 4 Robot Hacks Applied 177 | . . . . . . . 3 5 1 . . 13 4 4 3 9 2 15 15 27 18 15 5 16 8 14 parse_system 2 | . . . . . . . . . . . . 1 . . . . . . . . . . . 1 . . map_walls 2 | . . . . . . . . . . . . . . . . . . . 1 . 1 . . . . . drop_inventory 4 | . . . . . . . . . . . . . . . . . . . 2 . . . 1 . 1 . purge_threat 2 | . . . . . . . . . . . . . . . . . . . . . 2 . . . . . map_route 6 | . . . . . . . . . . . . . . . . . . . 2 . 1 . 1 . 1 1 find_garrison 7 | . . . . . . . 1 . 1 . . . 1 . . . 1 . 1 . 1 . 1 . . . disrupt_area 1 | . . . . . . . . . . . . . . . . . . . . 1 . . . . . . reboot_system 1 | . . . . . . . . . . . . . . . . . . . . . . . 1 . . . go_dormant 1 | . . . . . . . . . . . . . . . 1 . . . . . . . . . . . overwrite_iff 52 | . . . . . . . 1 1 . . . 9 . 2 . 2 1 10 2 8 4 6 . 2 1 3 streamctrl_high 1 | . . . . . . . . . . . . 1 . . . . . . . . . . . . . . formatsys_low 4 | . . . . . . . . . . . . . 1 . 1 . . . 1 . 1 . . . . . formatsys_high 94 | . . . . . . . 1 4 . . . 2 2 2 1 7 . 5 6 18 8 9 1 13 5 10 Relay Couplers Released 96 | . . . . . . 10 . 13 . . . 7 . 9 . 5 . 8 . 15 . 18 . 11 . . Machine Destruction 93 | . . . . . . 10 . 13 . . . 4 . 9 . 5 . 8 . 15 . 18 . 11 . . Programmers 3 | . . . . . . . . . . . . 3 . . . . . . . . . . . . . . Attached 66 | . . . . . . . 1 3 1 . . 4 3 3 3 6 1 7 1 8 4 6 2 7 3 3 Merged Code Value 337 | . . . . . . . . . . . . . . . . . . 33 . 207 . 55 . 42 . . Fabnet Peak Effective % . | . . . . . . . . . . . . . . . . . . . . . . . . . . . Robots Rewired 22 | . . . . . . 2 . . . . . . . . . . . 11 . . . . . 9 . . Allies Hacked 10 | . . . . . . . . . . . . . . . . . . . 2 3 . . 2 . . 3 Hacks Repelled . | . . . . . . . . . . . . . . . . . . . . . . . . . . . Allies | -11 -10 -10 -10 -9 -8 -8 -8 -8 -7 -7 -7 -7 -6 -6 -5 -5 -4 -4 -3 -3 -2 -2 -2 -2 -1 -1 -------- Run | Jun Mat Min Exi Min Mat Gar Mat Gar Fac Gar Fac Gar Fac Gar Fac Gar Fac Gar Res Gar Res Gar Res Gar Acc Com Total Allies 214 | . . . . 2 . 2 2 5 . . . 10 3 6 4 9 1 24 9 29 16 16 2 31 17 26 Largest Group 18 | . . . . 2 2 2 2 2 2 . . 4 2 6 8 8 8 13 4 8 6 5 5 18 14 11 Highest-Rated Group 931 | . . . . 45 45 70 32 34 32 . . 52 64 320 303 298 354 583 271 440 388 291 291 931 835 640 Highest-Rated Ally 219 | . . . . 31 31 39 16 34 16 . . 32 41 85 85 63 56 116 137 95 178 69 69 148 89 219 Total Orders 4 | . . . . . . . . . . . . . . . 1 1 . . 1 . 1 . . . . . STAY 2 | . . . . . . . . . . . . . . . . . . . 1 . 1 . . . . . AID 2 | . . . . . . . . . . . . . . . 1 1 . . . . . . . . . . Ally Attacks 1175 | . . . . . 10 7 23 21 2 . . 49 8 46 7 71 10 99 66 101 110 91 15 158 168 113 Total Damage 42854 | . . . . . 106 196 246 407 13 . . 835 116 1868 78 1863 263 3981 2282 3128 4669 3529 657 4832 8326 5459 Kills 197 | . . . . . 2 2 1 2 . . . 10 . 14 2 20 2 18 12 15 17 15 3 17 33 12 Allies Corrupted 14 | . . . . . . . . . . . . . 1 . . 1 . 4 1 1 . . 1 1 . 4 Allies Melted 1 | . . . . . . . . . . . . . . . . . . . . 1 . . . . . . Intel | -11 -10 -10 -10 -9 -8 -8 -8 -8 -7 -7 -7 -7 -6 -6 -5 -5 -4 -4 -3 -3 -2 -2 -2 -2 -1 -1 ------- Run | Jun Mat Min Exi Min Mat Gar Mat Gar Fac Gar Fac Gar Fac Gar Fac Gar Fac Gar Res Gar Res Gar Res Gar Acc Com Robot Analysis Total 1 | . 1 . . . . . . . . . . . . . . . . . . . . . . . . . Derelict Logs Recovered 5 | . . 2 . 3 . . . . . . . . . . . . . . . . . . . . . . Drone Launches . | . . . . . . . . . . . . . . . . . . . . . . . . . . . Drone Recoveries . | . . . . . . . . . . . . . . . . . . . . . . . . . . . Exploration | -11 -10 -10 -10 -9 -8 -8 -8 -8 -7 -7 -7 -7 -6 -6 -5 -5 -4 -4 -3 -3 -2 -2 -2 -2 -1 -1 ------------- Run | Jun Mat Min Exi Min Mat Gar Mat Gar Fac Gar Fac Gar Fac Gar Fac Gar Fac Gar Res Gar Res Gar Res Gar Acc Com Turns Passed 23351 | . 1819 646 574 706 425 1223 748 1270 2248 737 102 1542 550 448 531 668 179 1136 1683 1814 827 928 228 886 724 709 Spaces Moved 10740 | 1 850 105 256 401 263 810 441 556 1102 252 40 489 272 239 284 315 98 487 682 769 353 458 117 382 365 353 Core 76 | . . . . . . . . . . . . 1 . . . . . . . . . . . . . 75 Treads 3528 | . 1 . . . . . . . . 97 . 59 272 239 284 315 98 487 682 461 . . . . 255 278 Legs 5054 | 1 106 . 137 401 263 810 441 556 75 67 40 429 . . . . . . . 308 353 458 117 382 110 . Wheels 2082 | . 743 105 119 . . . . . 1027 88 . . . . . . . . . . . . . . . . Hover . | . . . . . . . . . . . . . . . . . . . . . . . . . . . Flight . | . . . . . . . . . . . . . . . . . . . . . . . . . . . Fastest Speed 50 | 120 120 200 170 170 105 105 105 184 135 135 260 170 170 170 170 170 170 170 160 153 172 172 172 172 170 50 Average Speed 174 | 120 172 200 183 170 118 105 141 191 157 233 260 258 170 170 170 170 170 183 217 193 172 172 172 172 171 144 Slowest Speed 1650 | 120 320 200 200 170 176 180 184 260 210 330 260 1650 170 170 170 170 170 240 240 240 175 172 172 172 250 250 Overloaded Moves . | . . . . . . . . . . . . . . . . . . . . . . . . . . . Propulsion Burnouts . | . . . . . . . . . . . . . . . . . . . . . . . . . . . Robots Hopped . | . . . . . . . . . . . . . . . . . . . . . . . . . . . Cave-ins Triggered . | . . . . . . . . . . . . . . . . . . . . . . . . . . . Exploration Rate (%) 41 | 2 93 28 61 84 19 87 36 81 34 49 2 54 11 44 7 46 8 52 23 93 15 86 8 62 17 23 Regions Visited 26 Branch Regions 4 Pre-discovered Areas 4 | . 1 . . 3 . . . . . . . . . . . . . . . . . . . . . . Known Exits Taken 11 | . 1 . . . 1 . 1 . 1 . 1 . 1 . 1 . 1 . 1 . 1 . 1 . . . Unknown Exits Taken 5 | 1 . 1 1 1 . . . . . . . . . . . . . . . . . . . . 1 . Scrap Searched 2 | . . . . 2 . . . . . . . . . . . . . . . . . . . . . . Spaces Dug 65 | . . . 1 . . 5 2 36 12 4 . . 3 . . . . . . . . . 1 . . 1 Terrain Destroyed 472 | . 8 . 1 . 9 52 2 116 119 19 . . 3 . . . . 1 15 1 10 1 1 . . 114 Melee 29 | . . . 1 . . . 2 5 12 4 . . 3 . . . . . . . . . 1 . . 1 Projectile 48 | . . . . . 9 8 . 1 2 . . . . . . . . 1 15 1 10 1 . . . . AOE 393 | . 8 . . . . 43 . 110 105 15 . . . . . . . . . . . . . . . 112 Terrain Rammed 1 | . . . . . . . . . . . . . . . . . . . . . . . . . . 1 Walls Destroyed . | . . . . . . . . . . . . . . . . . . . . . . . . . . . Machines Disabled . | . . . . . . . . . . . . . . . . . . . . . . . . . . . Actions | -11 -10 -10 -10 -9 -8 -8 -8 -8 -7 -7 -7 -7 -6 -6 -5 -5 -4 -4 -3 -3 -2 -2 -2 -2 -1 -1 --------- Run | Jun Mat Min Exi Min Mat Gar Mat Gar Fac Gar Fac Gar Fac Gar Fac Gar Fac Gar Res Gar Res Gar Res Gar Acc Com Total 14392 | . 1049 542 347 414 342 1055 524 708 1499 345 39 684 348 273 333 432 109 692 827 1034 539 581 143 593 459 481 Wait 1429 | . 43 438 48 . 20 107 26 12 230 12 . 20 47 . 16 72 3 74 42 19 75 13 . 51 50 11 Move 10721 | . 849 104 255 400 262 809 441 555 1101 251 39 488 272 238 284 314 98 486 682 768 353 457 117 381 364 353 Hop . | . . . . . . . . . . . . . . . . . . . . . . . . . . . Pick Up 248 | . 28 . 10 . 13 13 11 19 18 3 . 29 3 9 8 6 2 5 8 20 6 10 5 7 5 10 Fast Attach 124 | . 1 . 4 . 4 5 1 4 8 13 . 10 . 1 5 . . 4 5 39 4 3 . 6 4 3 Attach 143 | . 7 . 3 . 4 7 4 13 12 3 . 12 3 3 2 3 2 3 8 12 12 11 . 5 3 11 Detach 24 | . . . . . 1 1 1 . 1 2 . . . . 1 . . . . 3 5 6 . 1 1 1 Swap 163 | . 14 . . 4 3 12 2 8 16 5 . 17 5 3 2 8 . 9 6 15 10 2 5 4 3 10 Drop 249 | . 8 . 12 . 13 12 11 15 18 9 . 27 3 6 10 4 . 2 4 44 10 5 8 6 11 11 Fire 721 | . 98 . 1 . 15 62 . 23 31 32 . 60 7 8 5 14 4 32 60 71 53 43 6 34 14 48 Melee 283 | . . . 14 10 7 19 27 30 64 9 . 15 7 5 . 11 . 14 . 23 2 2 1 4 3 16 Ram 2 | . 1 . . . . . . . . . . . . . . . . . . . . . . . . 1 Kick 7 | . . . . . . . . . . . . . . . . . . . . . 6 . . . 1 . Crush 14 | . . . . . . . . . . . . . . . . . . 4 9 . . . . . . 1 Escape Stasis 100 | . . . . . . . . 24 . 6 . 5 . . . . . . . 14 . 28 . 20 . 3 Rewire 164 | . . . . . . 8 . 5 . . . 1 1 . . . . 59 3 6 3 1 1 74 . 2 Trap . | . . . . . . . . . . . . . . . . . . . . . . . . . . . Miscellaneous . | . . . . . . . . . . . . . . . . . . . . . . . . . . . Route ------- -11/Junkyard -10/Materials (discovered 4 exits: *Mat x3 / *Min) -10/Mines (discovered 2 exits: Mat / *Exi) -10/Exiles (discovered 2 exits: [*Min x2]) -9/Mines -8/Materials -8/Garrison (discovered 4 exits: *Mat x4) -8/Materials (discovered 2 exits: *Fac / Gar) -8/Garrison (discovered 3 exits: *Fac x3) -7/Factory (discovered 4 exits: [*Sto] / [*Low x2] / Gar) -7/Garrison -7/Factory -7/Garrison -6/Factory -6/Garrison -5/Factory -5/Garrison -4/Factory -4/Garrison -3/Research (discovered 2 exits: *Res / Gar) -3/Garrison (discovered 3 exits: *Res x3) -2/Research (discovered 2 exits: *Acc / Gar) -2/Garrison (discovered 3 exits: *Res x3) -2/Research -2/Garrison (discovered 2 exits: *Acc x2) -1/Access -1/Command History --------- Turn | Location | Event 1 | -11/Junkyard | Discovered new exit (range 0) 1 | -11/Junkyard | Entered Materials 113 | -10/Materials | Discovered new exit (range 12) 307 | -10/Materials | Build established: Mutant 363 | -10/Materials | Discovered new exit (range 14) 642 | -10/Materials | Discovered new exit (range 15) 826 | -10/Materials | Identified exit to Mines 840 | -10/Materials | Discovered new exit (range 14) 1820 | -10/Materials | Entered Mines 1858 | -10/Mines | Learned Materials stockpile data 2408 | -10/Mines | Identified exit to Materials 2458 | -10/Mines | Deemed a non-threat by the Exiles lab entrance 2458 | -10/Mines | Discovered new exit (range 5) 2466 | -10/Mines | Entered Exiles 2496 | -10/Exiles | Discovered new exit (range 15) 2533 | -10/Exiles | Met 8R-AWN 2561 | -10/Exiles | Met EX-HEX 2619 | -10/Exiles | Met EX-BIN 2643 | -10/Exiles | Aligned with FarCom system 2645 | -10/Exiles | Given EX-Vault access code 2691 | -10/Exiles | Opened EX-Vault 2704 | -10/Exiles | Found Prototype Device 2704 | -10/Exiles | Identified Supersonic Drone Bay 2710 | -10/Exiles | Found Prototype Leg 2710 | -10/Exiles | Identified Potential Leg 2714 | -10/Exiles | Found Potential Leg 2725 | -10/Exiles | Found Prototype Slashing Weapon 2725 | -10/Exiles | Identified Longsword +1 2781 | -10/Exiles | Exiles lab attacked by MAIN.C 2905 | -10/Exiles | Attacked by the Exiles 2918 | -10/Exiles | Core integrity fell below 50% 2977 | -10/Exiles | Destroyed 8R-AWN 2986 | -10/Exiles | Found Prototype Ballistic Gun 2992 | -10/Exiles | Found Prototype Ballistic Gun 3026 | -10/Exiles | Discovered new exit (range 10) 3040 | -10/Exiles | Stole two prototypes: Potential Leg, Longsword +1 3040 | -10/Exiles | Entered Mines 3064 | -9/Mines | Met a Derelict bent on vengeance 3506 | -9/Mines | Learned location of Zion (-6) 3576 | -9/Mines | Found a hidden stash of uninstalled traps 3614 | -9/Mines | Learned location of Storage (-7) 3716 | -9/Mines | Discovered new exit (range 9) 3746 | -9/Mines | Entered Materials 3746 | -8/Materials | Accompanied by 2 allies 3746 | -8/Materials | Evolved 4 slots: Propulsion x2, Utility x2 3751 | -8/Materials | Led the pair of lost Derelicts to an unsafe place 3812 | -8/Materials | Identified exit to Garrison 3827 | -8/Materials | Garrison activated, responded to threat 4019 | -8/Materials | Identified 8R-AWN's Boregun (x2) 4042 | -8/Materials | Build established: Scavenger-Mutant 4171 | -8/Materials | Entered Garrison 4202 | -8/Garrison | Triggered checkpoint 4251 | -8/Garrison | Garrison Relay disabled 4338 | -8/Garrison | Discovered new exit (range 5) 4356 | -8/Garrison | Triggered checkpoint 4418 | -8/Garrison | Triggered checkpoint 4638 | -8/Garrison | Triggered checkpoint 4735 | -8/Garrison | Discovered new exit (range 10) 4791 | -8/Garrison | Triggered checkpoint 4826 | -8/Garrison | Lost 4 parts (1p3u) 4857 | -8/Garrison | Discovered new exit (range 13) 4870 | -8/Garrison | Triggered checkpoint 4910 | -8/Garrison | Garrison Relay disabled 5090 | -8/Garrison | Installed Relay Interface Framework 5191 | -8/Garrison | Learned Materials security intel 5220 | -8/Garrison | Triggered checkpoint 5294 | -8/Garrison | Discovered new exit (range 12) 5313 | -8/Garrison | Expanded RIF knowledge: Zone Cloak 5394 | -8/Garrison | Entered Materials 5486 | -8/Materials | Build established: Bothacker-Mutant 5917 | -8/Materials | Discovered new exit (range 16) 6142 | -8/Materials | Identified exit to Garrison 6142 | -8/Materials | Entered Garrison 6142 | -8/Garrison | Accompanied by 1 ally 6182 | -8/Garrison | Triggered checkpoint 6246 | -8/Garrison | Garrison Relay disabled 6452 | -8/Garrison | Triggered checkpoint 6519 | -8/Garrison | Core integrity fell below 50% 6568 | -8/Garrison | Discovered new exit (range 13) 6586 | -8/Garrison | Destroyed 7 combat bots 6722 | -8/Garrison | Triggered checkpoint 6753 | -8/Garrison | Garrison Relay disabled 6870 | -8/Garrison | Triggered checkpoint 6958 | -8/Garrison | Triggered checkpoint 7004 | -8/Garrison | Garrison Relay disabled 7058 | -8/Garrison | Discovered new exit (range 12) 7169 | -8/Garrison | Triggered checkpoint 7238 | -8/Garrison | Expanded RIF knowledge: Structural Interface 7322 | -8/Garrison | Triggered checkpoint 7360 | -8/Garrison | Lost 5 parts (1p2n2w) 7388 | -8/Garrison | Discovered new exit (range 12) 7412 | -8/Garrison | Entered Factory 7412 | -7/Factory | Accompanied by 2 allies 7412 | -7/Factory | Evolved 2 slots: Utility x2 8028 | -7/Factory | Build established: Scavenger-Mutant 8094 | -7/Factory | Identified exit to Garrison 8139 | -7/Factory | Garrison activated, responded to threat 8748 | -7/Factory | Discovered new exit (range 15) 8774 | -7/Factory | Discovered new exit (range 5) 8920 | -7/Factory | Build established: Mutant 9125 | -7/Factory | Garrison activated, responded to threat 9553 | -7/Factory | Discovered new exit (range 12) 9660 | -7/Factory | Entered Garrison 9738 | -7/Garrison | Triggered checkpoint 9856 | -7/Garrison | Triggered checkpoint 10030 | -7/Garrison | Build established: Bothacker-Mutant 10107 | -7/Garrison | Triggered checkpoint 10161 | -7/Garrison | Lost 3 parts (2n1w) 10319 | -7/Garrison | Expanded RIF knowledge: Coupler Efficiency 10348 | -7/Garrison | Discovered new exit (range 5) 10397 | -7/Garrison | Entered Factory 10457 | -7/Factory | Identified exit to Garrison 10499 | -7/Factory | Entered Garrison 10574 | -7/Garrison | Triggered checkpoint 10620 | -7/Garrison | Build established: Botlord-Mutant 10686 | -7/Garrison | Triggered checkpoint 10710 | -7/Garrison | Triggered checkpoint 10760 | -7/Garrison | Triggered checkpoint 10761 | -7/Garrison | Core integrity fell below 50% 10805 | -7/Garrison | Core integrity fell below 20% 10823 | -7/Garrison | Lost 6 parts (4n2w) 11134 | -7/Garrison | Expanded RIF knowledge: Watcher Feeds 11156 | -7/Garrison | Triggered checkpoint 11232 | -7/Garrison | Garrison Relay disabled 11881 | -7/Garrison | Discovered new exit (range 13) 11994 | -7/Garrison | Spotted B-75 Beast 12041 | -7/Garrison | Entered Factory 12041 | -6/Factory | Evolved 2 slots: Power x1, Utility x1 12591 | -6/Factory | Identified exit to Garrison 12591 | -6/Factory | Entered Garrison 12591 | -6/Garrison | Accompanied by 2 allies 12646 | -6/Garrison | Expanded RIF knowledge: Robot Detection 12691 | -6/Garrison | Found embedded Infiltrators 12694 | -6/Garrison | Triggered checkpoint 12737 | -6/Garrison | Garrison Relay disabled 12837 | -6/Garrison | Spotted B-75 Beast 12848 | -6/Garrison | Triggered checkpoint 12850 | -6/Garrison | Assimilated Beast 5a with formatsys_high 12862 | -6/Garrison | Triggered checkpoint 12870 | -6/Garrison | Triggered checkpoint 12928 | -6/Garrison | Triggered checkpoint 12953 | -6/Garrison | Garrison Relay disabled 13022 | -6/Garrison | Discovered new exit (range 10) 13039 | -6/Garrison | Entered Factory 13039 | -5/Factory | Accompanied by 5 allies 13039 | -5/Factory | Evolved 2 slots: Utility x2 13365 | -5/Factory | Fabricated E-15 Imp? 13564 | -5/Factory | Identified exit to Garrison 13570 | -5/Factory | Entered Garrison 13570 | -5/Garrison | Accompanied by 6 allies 13740 | -5/Garrison | Expanded RIF knowledge: Signal Jamming 13826 | -5/Garrison | Triggered checkpoint 13866 | -5/Garrison | Garrison Relay disabled 13992 | -5/Garrison | Triggered checkpoint 14013 | -5/Garrison | Triggered checkpoint 14013 | -5/Garrison | Triggered checkpoint 14014 | -5/Garrison | Triggered checkpoint 14168 | -5/Garrison | Triggered checkpoint 14171 | -5/Garrison | Discovered new exit (range 11) 14238 | -5/Garrison | Entered Factory 14238 | -4/Factory | Accompanied by 7 allies 14238 | -4/Factory | Evolved 2 slots: Utility x2 14414 | -4/Factory | Identified exit to Garrison 14417 | -4/Factory | Entered Garrison 14417 | -4/Garrison | Accompanied by 4 allies 14652 | -4/Garrison | Triggered checkpoint 14653 | -4/Garrison | Garrison Relay disabled 14718 | -4/Garrison | Triggered checkpoint 14793 | -4/Garrison | Spotted B-86 Titan 14826 | -4/Garrison | Triggered checkpoint 14832 | -4/Garrison | Triggered checkpoint 14839 | -4/Garrison | Triggered checkpoint 14851 | -4/Garrison | Triggered checkpoint 14855 | -4/Garrison | Assimilated Titan 7a with formatsys_high 14916 | -4/Garrison | Heavy support dispatched to Research 15126 | -4/Garrison | Expanded RIF knowledge: Code Merge 15175 | -4/Garrison | Discovered new exit (range 11) 15202 | -4/Garrison | Triggered checkpoint 15222 | -4/Garrison | Triggered checkpoint 15226 | -4/Garrison | Garrison Relay disabled 15286 | -4/Garrison | Heavy support dispatched to Research 15553 | -4/Garrison | Entered Research 15553 | -3/Research | Evolved 2 slots: Utility x2 16688 | -3/Research | Lost 3 parts (1n1u1w) 16731 | -3/Research | Discovered new exit (range 11) 16775 | -3/Research | Identified exit to Research 17053 | -3/Research | Search patrols dispatched 17236 | -3/Research | Identified exit to Garrison 17236 | -3/Research | Entered Garrison 17240 | -3/Garrison | Triggered checkpoint 17286 | -3/Garrison | Q-Series assembled to engage unique threat in Research 17316 | -3/Garrison | Garrison Relay disabled 17370 | -3/Garrison | Rescued a captive Derelict 17371 | -3/Garrison | Rescued a captive Derelict 17433 | -3/Garrison | System corruption reached 10% 17434 | -3/Garrison | P-80 Master assimilated allied Warden 8d 17438 | -3/Garrison | P-80 Master assimilated allied TC-RRL(b) 17596 | -3/Garrison | Spotted B-86 Titan 17609 | -3/Garrison | P-80 Master assimilated allied Warden 8c 17626 | -3/Garrison | Triggered checkpoint 17638 | -3/Garrison | Triggered checkpoint 17682 | -3/Garrison | Destroyed B-86 Titan 17709 | -3/Garrison | Lost 10 parts (1p2n5u2w) 17854 | -3/Garrison | Triggered checkpoint 17990 | -3/Garrison | Garrison Relay disabled 18022 | -3/Garrison | Triggered checkpoint 18108 | -3/Garrison | Discovered exit to Research (range 10) 18296 | -3/Garrison | Q-Series assembled to engage unique threat in Research 18336 | -3/Garrison | Spotted Executioner 18336 | -3/Garrison | Spotted Executioner 18359 | -3/Garrison | Allies destroyed Executioner 18453 | -3/Garrison | Found Prototype Processor 18453 | -3/Garrison | Identified Exp. Core Analyzer 18483 | -3/Garrison | Found Prototype Device 18483 | -3/Garrison | Identified Adv. Kinecellerator 18487 | -3/Garrison | Found Prototype Processor 18487 | -3/Garrison | Identified Exp. Targeting Computer 18516 | -3/Garrison | Discovered exit to Research (range 10) 18540 | -3/Garrison | Discovered exit to Research (range 56) 18540 | -3/Garrison | Discovered exit to Research (range 6) 18540 | -3/Garrison | Discovered exit to Research (range 62) 18588 | -3/Garrison | Triggered checkpoint 18618 | -3/Garrison | Garrison Relay disabled 18723 | -3/Garrison | Found embedded Infiltrators 18789 | -3/Garrison | QS Assembler disabled 18881 | -3/Garrison | Found Prototype Device 18881 | -3/Garrison | Identified Exp. Shield Generator 18942 | -3/Garrison | Triggered checkpoint 18983 | -3/Garrison | Expanded RIF knowledge: Autooverride 18995 | -3/Garrison | Garrison Relay disabled 19050 | -3/Garrison | Entered Research 19050 | -2/Research | Accompanied by 6 allies 19050 | -2/Research | Evolved 2 slots: Power x1, Utility x1 19130 | -2/Research | Discovered new exit (range 8) 19237 | -2/Research | Spotted B-90 Cyclops 19259 | -2/Research | Destroyed B-90 Cyclops 19877 | -2/Research | Identified exit to Garrison 19877 | -2/Research | Entered Garrison 19877 | -2/Garrison | Accompanied by 1 ally 19944 | -2/Garrison | Triggered checkpoint 19959 | -2/Garrison | Garrison Relay disabled 19993 | -2/Garrison | Expanded RIF knowledge: Command Fork 20066 | -2/Garrison | Triggered checkpoint 20121 | -2/Garrison | Spotted B-90 Cyclops 20128 | -2/Garrison | Triggered checkpoint 20138 | -2/Garrison | Triggered checkpoint 20144 | -2/Garrison | Triggered checkpoint 20146 | -2/Garrison | Allies destroyed B-90 Cyclops 20239 | -2/Garrison | Discovered new exit (range 15) 20436 | -2/Garrison | Triggered checkpoint 20455 | -2/Garrison | Garrison Relay disabled 20505 | -2/Garrison | Discovered new exit (range 12) 20586 | -2/Garrison | Triggered checkpoint 20647 | -2/Garrison | Discovered new exit (range 10) 20666 | -2/Garrison | Triggered checkpoint 20684 | -2/Garrison | Garrison Relay disabled 20739 | -2/Garrison | Garrison Relay disabled 20767 | -2/Garrison | Discovered new exit (range 14) 20767 | -2/Garrison | Discovered new exit (range 69) 20767 | -2/Garrison | Discovered new exit (range 73) 20805 | -2/Garrison | Entered Research 20805 | -2/Research | Accompanied by 5 allies 20858 | -2/Research | Found Beam Splitter 21010 | -2/Research | Found Exp. Core Analyzer 21033 | -2/Research | Identified exit to Garrison 21033 | -2/Research | Entered Garrison 21033 | -2/Garrison | Accompanied by 2 allies 21060 | -2/Garrison | Spotted Executioner 21060 | -2/Garrison | Spotted Executioner 21066 | -2/Garrison | Triggered checkpoint 21109 | -2/Garrison | Garrison Relay disabled 21177 | -2/Garrison | Spotted B-90 Cyclops 21187 | -2/Garrison | Assimilated Cyclops 9a with formatsys_high 21196 | -2/Garrison | P-80 Master assimilated allied Cyclops 9a 21198 | -2/Garrison | Triggered checkpoint 21205 | -2/Garrison | Triggered checkpoint 21206 | -2/Garrison | Triggered checkpoint 21213 | -2/Garrison | Allies destroyed Cyclops 9a 21238 | -2/Garrison | Triggered checkpoint 21291 | -2/Garrison | Discovered new exit (range 10) 21350 | -2/Garrison | Triggered checkpoint 21402 | -2/Garrison | Garrison Relay disabled 21482 | -2/Garrison | Garrison Relay disabled 21608 | -2/Garrison | Expanded RIF knowledge: Command Fork 21796 | -2/Garrison | Found Adv. Powered Armor 21801 | -2/Garrison | Found Adv. Powered Armor 21806 | -2/Garrison | Found Adv. Powered Armor 21854 | -2/Garrison | Triggered checkpoint 21855 | -2/Garrison | Discovered new exit (range 6) 21919 | -2/Garrison | Entered Access 21919 | -1/Access | Accompanied by 14 allies 21919 | -1/Access | Evolved 2 slots: Propulsion x2 21996 | -1/Access | Garrison activated, responded to threat 22054 | -1/Access | Found Gui. Micro-nuke Launcher 22169 | -1/Access | First assault squad dispatched 22525 | -1/Access | Energy Cycler disabled 22580 | -1/Access | Discovered new exit (range 10) 22643 | -1/Access | Entered Command 22643 | -1/Command | Accompanied by 5 allies 22674 | -1/Command | Spotted B-99 Colossus 22767 | -1/Command | Destroyed B-99 Colossus 22772 | -1/Command | Found Prototype Ballistic Gun 22772 | -1/Command | Identified Multirail 22780 | -1/Command | Found Multirail 22893 | -1/Command | First assault squad dispatched 22973 | -1/Command | Phase Generator disabled 23018 | -1/Command | High security lockdown imminent 23098 | -1/Command | High security lockdown engaged 23191 | -1/Command | P-80 Master assimilated allied Annihilator 10b 23233 | -1/Command | Lost 3 parts (1p2u) 23254 | -1/Command | Spotted Striker 23256 | -1/Command | P-80 Master assimilated allied Enforcer 10h 23265 | -1/Command | Spotted Striker 23265 | -1/Command | Spotted Investigator 23270 | -1/Command | Scanned by Researcher 23281 | -1/Command | Destroyed Investigator 23297 | -1/Command | System corruption reached 10% 23309 | -1/Command | Core integrity fell below 50% 23318 | -1/Command | Spotted B-99 Colossus 23333 | -1/Command | Spotted M Guard 23333 | -1/Command | Spotted M Guard 23333 | -1/Command | Spotted Combat Programmer 23334 | -1/Command | Spotted Combat Programmer 23350 | -1/Command | Core integrity fell below 20% 23350 | -1/Command | System corruption reached 30% 23352 | -1/Command | Destroyed by Striker with Plasma Lance Last Messages --------------- 23337_ Penetrated by EMDS Slug. 23338_ Combat Programmer resets Striker, system corruption cleaned. 23339_ Penetrated by EMDS Slug. 23339_ Knocked back. 23340_ Penetrated by EMDS Slug. 23341_ EMDS Slug penetrates Striker. 23341_ Arm. Heavy Treads destroyed. 23343_ Combat Programmer resets Striker, system corruption cleaned. 23344_ Penetrated by EMDS Slug. 23344_ Relay Coupler [Swarmer] destroyed. 23345_ Tri-rail Accelerator destroyed. 23345_ Slammed into Sealed Barrier. 23346_ Acquired 9 matter. 23347_ EMDS Slug penetrates Striker. 23347_ Door Terminal disabled. 23348_ Combat Programmer resets Striker, system corruption cleaned. 23349_ Relay Coupler [Sentry] destroyed. 23349_ Penetrated by EMDS Slug. 23352_ System corrupted: Energy discharge (-34). 23352_ Penetrated by EMDS Slug. Map ----- +----------------------------------------------------+ | ?????????????????????????????????????????????????? | | ?????????????????????????????????????????????????? | | ?????????????????????????????????????????????????? | | ?????????????????????????????????????????????????? | | ?????????????????????????????????????????????????? | | ?????????????????????????????????????????????????? | | ?????????????????????????????????????????????????? | | ?????????????????????????????????????????????????? | | ?????????????????????????????????????????????????? | | ?????????????????????????????????????????????????? | | ?????????????????????????????????????????????????? | | ?????????????????????????????????????????????????? | | ?????????????????????????????????????????????????? | | ?????????????????????????????????????????????????? | | ?????????????????????????????????????????????????? | | ?????????????????????????????????????????????????? | | ?????????????????????????????????????????????????? | | ?????????????????????????????????????????????????? | | ?????????????????????????????????????????????????? | | ?????????????????????????????????????????????????? | | ?????????????????????????????????????????????????? | | ?????????????????????????????????????????????????? | | ?????????????????????????????????????????????????? | | ?????????????????????????????????????????????????? | | ???????????????????????#"""##?#####?#####?#####?## | | ???????????????????????#%@p #?# #?# #?# #?# | | ???????????????????????#/pK#### ### ### ### | | ???????????????????????#Y Y% % % % | | ???????????????????????# % | | ???????????????????????# % | | ???????????????????????# | | ???????????????????????# | | ???????????????????????# ### ### ### ### | | ???????????????????????######?# #?# #?# #?# | | ??????????????????????????????#####?#####?#####?## | | ?????????????????????????????????????????????????? | | ?????????????????????????????????????????????????? | | ?????????????????????????????????????????????????? | | ?????????????????????????????????????????????????? | | ?????????????????????????????????????????????????? | | ?????????????????????????????????????????????????? | | ?????????????????????????????????????????????????? | | ?????????????????????????????????????????????????? | | ?????????????????????????????????????????????????? | | ?????????????????????????????????????????????????? | | ?????????????????????????????????????????????????? | | ?????????????????????????????????????????????????? | | ?????????????????????????????????????????????????? | | ?????????????????????????????????????????????????? | | ?????????????????????????????????????????????????? | +----------------------------------------------------+ Best States ------------- Heat Dissipation 84 Coolant Potential 80 Energy Generation 65 Energy Capacity 1130 Matter Stores 450 Matter Capacity 450 Sight Range 20 Robot Scan Range 15 Terrain Scan Range 14 Terrain Scan Density 10 Armor Coverage 825 Resistance: TH 25 Resistance: EX 50 Core Shielding 30 Utility Shielding 66 Point Defense Rating 160 Phase Shifting 15 Evasion (%) 55 Targeting Accuracy 12 Target Analysis 12 Recoil Reduction 6 Offensive Hacking 10 Relay Coupler Types 9 Relay Coupler Value 411 Item Schematics ----------------- None Robot Schematics ------------------ M-13 Machinist | -10/Materials | Hacked Fabricated ------------ E-15 Imp | x2 | -5/Factory | Preloaded Alien Tech Used ----------------- None Achievements -------------- None Challenges ------------ None Game ------ Seed ShadingXenonAutohacker Manual? 0 Play Time 04:11:27 Cumulative 373.2 hours Start 2023.04.01 @ 21:00:10 End 2023.04.02 @ 13:48:05 Sessions 7 Manual Loads 0 Difficulty Rogue Special Mode None Game No. 412 Rogue 412 Adventurer 0 Explorer 0 Win Type - Total 11 Types 8/0/2/1/0/0/0/0/0 Lore% 81 Gallery% 89 Achievement% 79 Wizard Run 0 Options --------- ASCII 0 Keyboard 0 Movement Numpad Keybinds 0 Fullscreen 1 Font 18/Terminus Map View 76x50 Tactical HUD 1 Map Filters NONE Filters NONE Steam 1 RUN: 51892e56-79b0-4a7a-9cd8-b270d0716f54